Cogmind - Beta 17.1 @@@ ROGUE MODE // 2026.09.02 @ 22:44:33 Player: 7H-NLC Result: Destroyed by S-10 Pest with Light Assault Rifle Performance ------------- Evolutions (0) 0 Regions Visited (2) 400 Robots Destroyed (19) 95 Value Destroyed (361) 361 Prototype IDs (0) 0 Alien Tech Used (0) 0 Bonus (-21) -21 TOTAL SCORE: 835 Bonus ------- Friendly Fire -21 Cogmind --------- Core Integrity 0/250 Matter 209/300 Energy 250/250 System Corruption 0% Temperature Cool (0) Movement Treading (160) Location -10/Subcaves Parts ------- > --- POWER (1) -------- Ion Engine > --- PROPULSION (2) --- Light Treads Light Treads > --- UTILITY (2) ------ Large Storage Unit Propulsion Shielding > --- WEAPON (2) ------- Battle Rifle > --- INVENTORY (15) --- Light Treads Light Treads Light Treads Light Treads Wheel Compact Wheel Medium Matter Pod (22) Large Matter Pod (0) Improved Terrain Scanner Seismic Detector Subdweller Beam Cannon Assault Rifle Grenade Launcher Mining Laser Peak State ------------ > --- POWER ------------ Ion Engine > --- PROPULSION ------- Light Treads Light Treads > --- UTILITY ---------- Large Storage Unit Seismic Detector > --- WEAPON ----------- Assault Rifle Battle Rifle > --- INVENTORY -------- Light Treads Light Treads Light Treads Light Treads Wheel Compact Wheel Medium Matter Pod Large Matter Pod Improved Terrain Scanner Propulsion Shielding Assault Rifle Grenade Launcher Mining Laser [Rating: 9] Favorites ----------- Power Ion Engine Engine Ion Engine Propulsion Light Treads Treads Light Treads Wheel Compact Wheel Utility Seismic Detector Device Seismic Detector Storage Large Storage Unit Protection Propulsion Shielding Weapon Assault Rifle Ballistic Gun Assault Rifle Launcher Grenade Launcher Special Weapon Mining Laser Build | -11 -10 -10 ------- Run | Yrd Mat Sub Slots Evolved . | . . . Power . | . . . Propulsion . | . . . Utility . | . . . Weapon . | . . . Parts Attached 19 | 7 6 6 Power 2 | 1 1 . Engine 2 | 1 1 . Core . | . . . Reactor . | . . . Propulsion 6 | 2 2 2 Treads 4 | . 2 2 Leg . | . . . Wheel 2 | 2 . . Hover . | . . . Flight . | . . . Utility 4 | 2 1 1 Device 1 | 1 . . Storage 2 | 1 1 . Processor . | . . . Hackware . | . . . Protection 1 | . . 1 Artifact . | . . . Weapon 7 | 2 2 3 Energy Gun . | . . . Energy Cannon . | . . . Ballistic Gun 5 | 2 2 1 Ballistic Cannon . | . . . Launcher 1 | . . 1 Special Weapon 1 | . . 1 Impact Weapon . | . . . Slashing Weapon . | . . . Piercing Weapon . | . . . Special Melee Weapon . | . . . Unidentified Prototypes . | . . . Parts Lost 4 | . 1 3 Power . | . . . Propulsion 2 | . . 2 Utility . | . . . Weapon 2 | . 1 1 Highest Loss Streak 2 | . 1 2 To Critical Strikes . | . . . Average Backups 12 | 2 13 14 Power . | . . . Propulsion 6 | 1 7 6 Utility 3 | . 3 4 Weapon 2 | . 2 3 Tool/Special . | . . . Unused Backups 8 | . . 8 Power . | . . . Propulsion 4 | . . 4 Utility 3 | . . 3 Weapon 1 | . . 1 Tool/Special . | . . . Average Slot Usage (%) 94 | . 100 86 Engine 14 | . 14 14 Treads 10 | . 3 20 Wheel 14 | . 24 . Device 13 | . 14 13 Storage 14 | . 14 14 Ballistic Gun 25 | . 28 21 Peak Build Rating 9 | 7 8 9 Average Rating 7 | 5 7 7 On Entrance 4 | . 7 7 Avg Prop Armor Cover (%) . | . . . Naked Turns . | . . . Heaviest Build 31 | 12 30 31 Greatest Support 40 | 26 40 40 Greatest Overweight (x) 1 | . 1 1 Average Overweight (x) . | . . . Largest Inventory Capacity 15 | 8 15 15 Average Capacity 14 | 6 14 15 Most Carried 15 | 5 15 15 Average Carried 13 | 2 14 13 Final Capacity 15 | 8 15 15 Final Carried 15 | 4 15 14 Class Distribution -------------------- 100% | Mutant Dominant Class ---------------- Mutant | -10/Materials Mutant | -10/Subcaves Resources | -11 -10 -10 ----------- Run | Yrd Mat Sub Matter Collected 705 | 286 234 185 Remotely . | . . . Salvage Created 556 | 128 243 185 Parts 46 | 13 19 14 Haulers Intercepted 1 | . 1 . Recyclers Shooed 1 | 1 . . Parts Field Recycled . | . . . Retrieved Matter . | . . . Parts Self-Destructed . | . . . Prevented . | . . . Parts Restored . | . . . Kills | -11 -10 -10 ------- Run | Yrd Mat Sub Combat Hostiles Destroyed 10 | . 4 6 Guns 9 | . 4 5 AOE 1 | . . 1 Classes Destroyed 9 | 2 6 1 Worker 1 | . 1 . Builder 1 | . 1 . Tunneler 3 | 3 . . Hauler 1 | . 1 . Recycler 2 | 1 1 . Watcher 1 | . 1 . Swarmer 3 | . 3 . Grunt 1 | . 1 . Subdweller 6 | . . 6 Best Kill Streak 5 | 2 5 3 Combat Bots Only 3 | . 3 3 Max Kills in Single Turn 1 | 1 1 1 Gunslinging . | . . . Exploded 1 | . . 1 Melee . | . . . Uniques/NPCs Destroyed . | . . . Combat | -11 -10 -10 -------- Run | Yrd Mat Sub Hostile Shots Fired 95 | . 44 51 Missed 20 | . 10 10 Hits 75 | . 34 41 Projectile 75 | . 34 41 AOE 3 | . . 3 Critical Strikes 1 | . . 1 Damage Taken 1204 | . 454 750 Core 251 | . 60 191 Absorbed by Shields . | . . . Redirected to Shielding 12 | . . 12 Core Remaining (%) 100 | 100 . . Volleys Fired 72 | 9 28 35 Largest 2 | 2 2 2 Hottest 100 | 40 40 100 Shots Fired 118 | 18 56 44 Gun 112 | 18 56 38 Cannon . | . . . Launcher 4 | . . 4 Special 2 | . . 2 Kinetic 112 | 18 56 38 Thermal 2 | . . 2 Explosive 4 | . . 4 Electromagnetic . | . . . Robot Hit Streak 14 | 7 13 14 Robot Miss Streak 3 | 1 3 3 Penetration Max . | . . . Secondary Targets 1 | . 1 . Max Gunslinging Chain 1 | . 1 . Shots Hit Robots 79 | 13 32 34 Core Hits 29 | 5 13 11 Critical Kills . | . . . Critical Parts Destroyed . | . . . Critical Strikes . | . . . Melee Attacks . | . . . Impact . | . . . Slashing . | . . . Piercing . | . . . Sneak Attacks . | . . . Combat Hostiles . | . . . Follow-up Attacks . | . . . Damage Inflicted 1387 | 139 408 840 Guns 964 | 139 390 435 Cannons . | . . . Explosions 405 | . . 405 Melee . | . . . Ramming 18 | . 18 . Kinetic 964 | 139 390 435 Thermal . | . . . Explosive 405 | . . 405 Electromagnetic . | . . . Impact . | . . . Slashing . | . . . Piercing . | . . . Highest Corruption . | . . . Average Corruption . | . . . Corruption Purged . | . . . Corruption Blocked . | . . . Overload Shots . | . . . Overflow Damage . | . . . Projectiles . | . . . Explosions . | . . . Melee . | . . . Knockbacks . | . . . Impact . | . . . Kinetic . | . . . Secondary . | . . . Self-Inflicted Damage . | . . . Shots . | . . . Rammed 2 | . 2 . Targets Rammed 2 | . 2 . Kicked . | . . . Crushed . | . . . Highest Temperature . | . . . Average Temperature . | . . . Received Heat Transfer 135 | . 60 75 Siege Activations . | . . . Martial Activations . | . . . Shielding Activations . | . . . Robots Disrupted . | . . . Combat Hostiles . | . . . Robots Corrupted . | . . . Combat Hostiles . | . . . Parts Fried . | . . . Impact Corruptions . | . . . Robots Melted . | . . . Combat Hostiles . | . . . Parts Melted 1 | . . 1 Heat Transferred . | . . . Parts Sabotaged . | . . . Parts Stolen . | . . . Parts Stripped . | . . . Power Chain Reactions . | . . . Alert | -11 -10 -10 ------- Run | Yrd Mat Sub Maximum Alert Level . | . . . Low Security (%) 100 | 100 100 . Level 1 . | . . . Level 2 . | . . . Level 3 . | . . . Level 4 . | . . . Level 5 . | . . . High Security . | . . . Max Security . | . . . Peak Influence 70 | 10 70 . Initial . | . . . Average 10 | 2 12 . Influence Increases 147 | 20 127 . Destroy 0b10 Robot/C 80 | . 80 . Destroy 0b10 Robot/NC 45 | 20 25 . Destroy Leader 14 | . 14 . Successful Hack 8 | . 8 . Influence Decreases 147 | 20 127 . Time Decay 147 | 20 127 . Squads Dispatched 1 | . 1 . Investigation . | . . . Extermination . | . . . Reinforcement 1 | . 1 . Assault . | . . . Garrison . | . . . Intercept . | . . . Searches Triggered . | . . . Construction Impeded . | . . . Haulers Reinforced . | . . . Active Scanning Responses . | . . . Cargo Convoy Interrupts . | . . . Stealth | -11 -10 -10 --------- Run | Yrd Mat Sub Distress Signals . | . . . Communications Jammed . | . . . Distress Signals . | . . . Times Spotted 22 | . 12 10 Peak Tracking Total 4 | . 4 3 Tactical Retreats 1 | . . 1 Traps | -11 -10 -10 ------- Run | Yrd Mat Sub Traps Triggered 3 | . 3 . Indirectly . | . . . Trap Hack Attempts . | . . . Triggered . | . . . Disarmed . | . . . Reprogrammed . | . . . Reused . | . . . Traps Extracted . | . . . Installed . | . . . Triggered . | . . . Machines | -11 -10 -10 ---------- Run | Yrd Mat Sub Machines Disabled . | . . . Max in Single Turn . | . . . Machines Repaired . | . . . Machines Dismantled . | . . . Machines Sabotaged . | . . . Overloaded Fab Kills . | . . . Hacking | -11 -10 -10 --------- Run | Yrd Mat Sub Machines Accessed 3 | . 3 . Terminals 2 | . 2 . Fabricators . | . . . Repair Stations 1 | . 1 . Recycling Units . | . . . Scanalyzers . | . . . Garrison Access . | . . . Total Hacks 9 | . 9 . Successful 4 | . 4 . Failed 5 | . 5 . Catastrophic . | . . . Database Lockouts . | . . . Manual 5 | . 5 . Terminals 7 | . 7 . Fabricators . | . . . Repair Stations 2 | . 2 . Recycling Units . | . . . Scanalyzers . | . . . Garrison Access . | . . . Terminal Hacks 2 | . 2 . Locate Traps 1 | . 1 . Hauler Manifests 1 | . 1 . Fabricator Hacks . | . . . Repair Station Hacks 1 | . 1 . Scan Component 1 | . 1 . Recycling Unit Hacks . | . . . Scanalyzer . | . . . Garrison Access Hacks . | . . . Unauthorized Hacks 1 | . 1 . Terminals 1 | . 1 . Botnet 1 | . 1 . Fabricators . | . . . Repair Stations . | . . . Recycling Units . | . . . Scanalyzers . | . . . Garrison Access . | . . . Data Cores Recovered . | . . . Used . | . . . Hacking Detections 3 | . 3 . Full Trace Events . | . . . Feedback Events . | . . . Feedback Blocked . | . . . Robot Schematics Acquired . | . . . Robots Built . | . . . Authchips . | . . . Time . | . . . Total Robot Build Rating . | . . . Part Schematics Acquired . | . . . Parts Built . | . . . Authchips . | . . . Time . | . . . Total Part Build Rating . | . . . Part Studies Acquired . | . . . Parts Repaired . | . . . Time . | . . . Parts Recycled . | . . . Recycled Matter . | . . . Retrieved Matter . | . . . Retrieved Components . | . . . Parts Scanalyzed . | . . . Part Schematics Acquired . | . . . Parts Damaged . | . . . Bothacking | -11 -10 -10 ------------ Run | Yrd Mat Sub Used RIF Installer . | . . . Robots Hacked . | . . . Non-combat . | . . . Combat . | . . . Robot Hacks Applied . | . . . Relay Couplers Released . | . . . Fabnet Peak Effective % . | . . . Robots Rewired . | . . . Allies Hacked . | . . . Hacks Repelled . | . . . Allies | -11 -10 -10 -------- Run | Yrd Mat Sub Total Allies . | . . . Largest Group . | . . . Highest-Rated Group . | . . . Highest-Rated Ally . | . . . Total Orders . | . . . Ally Attacks . | . . . Total Damage . | . . . Kills . | . . . Allies Corrupted . | . . . Allies Melted . | . . . Intel | -11 -10 -10 ------- Run | Yrd Mat Sub Active Infowar (turns) 912 | 5 532 375 Seismic 912 | 5 532 375 Robot Analysis Total . | . . . Derelict Logs Recovered 1 | . . 1 Drone Launches . | . . . Drone Recoveries . | . . . Exploration | -11 -10 -10 ------------- Run | Yrd Mat Sub Turns Passed 1004 | 82 532 390 Spaces Moved 575 | 49 381 145 Core 9 | 9 . . Treads 174 | . 29 145 Legs . | . . . Wheels 392 | 40 352 . Hover . | . . . Flight . | . . . Fastest Speed 50 | 50 90 160 Average Speed 128 | 84 107 196 Slowest Speed 240 | 100 160 240 Overloaded Moves . | . . . Propulsion Burnouts . | . . . Robots Hopped . | . . . Potential Cave-ins 1 | . . 1 Cave-ins Triggered . | . . . Exploration Rate (%) 22 | 3 59 5 Regions Visited 2 Branch Regions 1 Pre-discovered Areas . | . . . Known Exits Taken . | . . . Unknown Exits Taken 2 | 1 1 . Scrap Searched . | . . . Spaces Dug . | . . . Terrain Destroyed 16 | . . 16 Melee . | . . . Projectile . | . . . AOE 16 | . . 16 Terrain Rammed . | . . . Walls Destroyed . | . . . Machines Disabled . | . . . Actions | -11 -10 -10 --------- Run | Yrd Mat Sub Total 716 | 70 445 201 Wait 21 | 1 9 11 Move 573 | 48 380 145 Hop . | . . . Pick Up 17 | 5 11 1 Fast Attach 12 | 6 6 . Attach 4 | 1 . 3 Detach . | . . . Swap 12 | . 6 6 Drop 3 | . 3 . Fire 72 | 9 28 35 Melee . | . . . Ram . | . . . Kick . | . . . Crush 2 | . 2 . Escape Stasis . | . . . Rewire . | . . . Trap . | . . . Miscellaneous . | . . . Route ------- -11/Scrapyard -10/Materials (discovered 3 exits: [*Mat] / [*Min] / [*Sub]) -10/Subcaves (discovered 2 exits: [*Mat x2]) History --------- Turn | Location | Event 8 | -11/Scrapyard | Discovered new exit (range 16) 83 | -11/Scrapyard | Entered Materials 168 | -10/Materials | Discovered new exit (range 9) 307 | -10/Materials | Build established: Mutant 448 | -10/Materials | Discovered new exit (range 8) 583 | -10/Materials | Derelicts attacked the area 604 | -10/Materials | Discovered new exit (range 8) 615 | -10/Materials | Entered Subcaves 616 | -10/Subcaves | Approached by a straggling Scientist 617 | -10/Subcaves | Learned 2 Materials zone layouts 625 | -10/Subcaves | Discovered new exit (range 9) 650 | -10/Subcaves | Discovered new exit (range 3) 872 | -10/Subcaves | Core integrity fell below 50% 914 | -10/Subcaves | Core integrity fell below 20% 915 | -10/Subcaves | A swath of the cavern ceiling suddenly collapsed 1005 | -10/Subcaves | Destroyed by S-10 Pest with Light Assault Rifle Last Messages --------------- 00709_ Subatomizers dissect the Disposable Heat Sink. 00709_ The unstable cave ceiling collapses. 00717_ Acquired 53 matter. 00722_ Subatomizers dissect the Disposable Heat Sink. 00761_ Subatomizers dissect the Disposable Heat Sink, destroying it. 00767_ The unstable cave ceiling collapses. 00788_ Subatomizers dissect the Sub. Laser. 00881_ Disposable Heat Sink melted. 00881_ DB-DDI(R) destroyed. 00887_ Acquired Sub. Beam Cannon. 00889_ Acquired 33 matter. 00908_ Assault Rifle destroyed. 00912_ AR-SIT(R) affixes Scrap Shield Fragment to Scrap Shield. A swath of the cavern ceiling suddenly collapses. 00919_ AR-SIT(R) destroyed. 00921_ Acquired 36 matter. 00937_ Subatomizers dissect the Wheel, destroying it. 00967_ 17-0W7(R) destroyed. 00968_ Acquired 33 matter. 00988_ Subatomizers dissect the Disposable Heat Sink. Map ----- +----------------------------------------------------+ | ?????????????????????????????????????????????????? | | ?????????????????????????????????????????????????? | | ?????????????????????????????????????????????????? | | ?????????????????????????????????????????????????? | | ?????????????????????????????????????????????????? | | ?????????????????????????????????????????????????? | | ?????????????????????????????????????????????????? | | ????????????????????????????????#????????????????? | | ??????????????????????????????? ????????????????? | | ??????????????????? ??????????? ????????????????? | | ?????????????????? ?????????? ???? ??????????? | | ??????????????????? ????????? ???? ???????????? | | ???????????????????? ###????? ??? ????????????? | | ????????????????#???? ###?? ??? ###?????????? | | ???????????????# ????? ### #### ###???????? | | ???????????????# ???## ??????? | | ???????????????? ?##"" % # ???????? | | ???????????????## # " #" "# #????????? | | ???????????????# #" ;#;"# #?????????? | | ????????????????# ### #;#"# ######????? | | ????????????????###"#####;; # ## #????? | | ??????????? ###"#"%#";;;# # ## ## ?????? | | ??????????? #"#""""#"#s##; #???## ## ?????? | | ?????????? ##;;#"""##&#&s;###?### ## ##????? | | ?????????????? #;; ;;;##&&&#"#???# ## ##???? | | ?????????????? ###"###*s@#&# ##??# &### ##### | | ??????????????????####;;#!## ###?# & [ # # | | ?????????????????????##"#;# ## ####!! < # | | ?????????????????????#"#;#< ## ## # # ## | | ?????????????????????##"; # " # & | | ?????????????????????###;# ""####" # & " " | | ???????????????????????#### ##??## ### & ## | | ??????????????????????????# #????# #?# # " | | ??????????????????????????# #????# #?########### | | ??????????????????????????# #????# #???????????### | | ??????????????????????????# #???? #?????????????? | | ??????????????????????????# ???? #?????????????? | | ??????????????????????????# ?????###?????????????? | | ???????????????????????????#?????????????????????? | | ?????????????????????????????????????????????????? | | ?????????????????????????????????????????????????? | | ?????????????????????????????????????????????????? | | ?????????????????????????????????????????????????? | | ?????????????????????????????????????????????????? | | ?????????????????????????????????????????????????? | | ?????????????????????????????????????????????????? | | ?????????????????????????????????????????????????? | | ?????????????????????????????????????????????????? | | ?????????????????????????????????????????????????? | | ?????????????????????????????????????????????????? | +----------------------------------------------------+ Best States ------------- Heat Dissipation 25 Energy Generation 10 Energy Capacity 250 Matter Stores 300 Matter Capacity 300 Sight Range 16 Terrain Scan Density 10 Propulsion Shielding 33 Evasion (%) 50 Recoil Reduction 2 Item Schematics ----------------- None Robot Schematics ------------------ None Fabricated ------------ Nothing Repaired ---------- Nothing Studied --------- None Alien Tech Used ----------------- None Achievements -------------- None Challenges ------------ None Game ------ Seed NodeBoreChainsaw Manual? 0 Play Time 00:09:01 Cumulative 475.5 hours Start 2026.09.02 @ 22:38:09 End 2026.09.02 @ 22:44:33 Sessions 1 Manual Loads 0 Difficulty Rogue Special Mode None Game No. 349 Rogue 349 Adventurer 0 Explorer 0 Win Type - Total 9 Types 4/0/3/2/0/0/0/0/0/0 Lore% 57 Gallery% 71 Achievement% 57 Wizard Run 0 Options --------- Layout 2 ASCII 0 Keyboard 1 Movement Vi Keybinds 0 Fullscreen 2 Font 32/Smallcaps Map View 77x44 Zoom Use 0% Tactical HUD 1 Map Filters NONE Filters NONE Steam 1 RUN: 80f82143-1ddb-4526-a3ff-cb0c67a84aeb